Workbook

Sheet start (hidden)
B2: Das Makro ist momentan nicht aktiviert
B3: Bitte Aktivieren Sie das Makro
B4: Ohne Makro funktioniert diese Datei nicht
B6: roland.schnurr@sixsigmablackbelt.de
B8: https://www.sixsigmablackbelt.de
B10: Abhängig von den Einstellungen in Microsoft Office kann es sein, dass Microsoft Dateien aus dem Internet
B11: mit der Endung .xlsb grundsätzlich beim Öffnen mit folgendem Warnhinweis versieht.
B23: Alle Dateien auf dieser Website sind grundsätzlich mit virustotal auf Freiheit von Viren überprüft.
B24: Virustotal prüft mit den 63 gängigsten Virenprogrammen auf Virenfreiheit.
B26: Möchten Sie mit unseren Dateien arbeiten und Microsoft gibt Ihnen obigen Hinweis, gehen Sie wie folgt vor:
B28: ="- Speichern Sie die Datei" -> - Speichern Sie die Datei
B29: ="- Wählen Sie den Speicherort (im Standardordner „downloads“)." -> - Wählen Sie den Speicherort (im Standardordner „downloads“).
B30: ="- Datei auswählen" -> - Datei auswählen
B31: ="- rechte Maustaste" -> - rechte Maustaste
B32: ="- Ein Fenster erscheint. Der letzte Punkt in diesem Fenster ist „Eigenschaften“" -> - Ein Fenster erscheint. Der letzte Punkt in diesem Fenster ist „Eigenschaften“
B33: ="- Wählen Sie diesen Punkt aus" -> - Wählen Sie diesen Punkt aus
B34: ="- Setzen Sie in dem erscheinenden Fenster den Haken bei „Zulassen“ (siehe unten)" -> - Setzen Sie in dem erscheinenden Fenster den Haken bei „Zulassen“ (siehe unten)
B35: ="- Klicken Sie auf „Übernehmen“ und dann auf „OK“" -> - Klicken Sie auf „Übernehmen“ und dann auf „OK“
B36: ="- Danach können Sie die Datei öffnen und mit ihr arbeiten." -> - Danach können Sie die Datei öffnen und mit ihr arbeiten.

Sheet input
L2: Messsystemanalyse Verfahren 7 attributive Merkmale (Bosch Heft Nr. 10 / AIAG)
B6: Teil | C6: Prüfergebnisse | L6: Refe-renz | M6: Ref. Wert | N6: Code
C7: A-1 | D7: A-2 | E7: A-3 | F7: B-1 | G7: B-2 | H7: B-3 | I7: C-1 | J7: C-2 | K7: C-3 | Q7: Merkmal | X7: Messmittel | AF7: Diese Version ist eingeschränkt
B8: 1 | C8: 1 | D8: 1 | E8: 1 | F8: 1 | G8: 1 | H8: 1 | I8: 1 | J8: 1 | K8: 1 | L8: 1 | N8: =IF(C8<>"",IF(SUM(C8:L8)=COUNT(C8:L8),"+",IF(SUM(C8:L8)=0,"-","x")),"") -> + | Q8: Bezeichnung | X8: Name | AF8: - Es sind maximal 5 Teile vergleichbar
B9: =B8+1 -> 2 | C9: 1 | D9: 1 | E9: 1 | F9: 1 | G9: 1 | H9: 1 | I9: 1 | J9: 1 | K9: 1 | L9: 1 | N9: =IF(C9<>"",IF(SUM(C9:L9)=COUNT(C9:L9),"+",IF(SUM(C9:L9)=0,"-","x")),"") -> + | Q9: Merkmalsnummer | X9: Nummer | AF9: ="- Die Datei ist nur als .xlsm speicherbar" -> - Die Datei ist nur als .xlsm speicherbar
B10: 3 | C10: 0 | D10: 0 | E10: 0 | F10: 0 | G10: 0 | H10: 0 | I10: 0 | J10: 0 | K10: 0 | L10: 0 | N10: - | Q10: Masseinheit | X10: Standort
B11: 4 | C11: 0 | D11: 0 | E11: 0 | F11: 0 | G11: 0 | H11: 0 | I11: 0 | J11: 0 | K11: 0 | L11: 0 | N11: - | Q11: Zeichnungsnummer | X11: Kalibrierschein | AF11: Die Version für bis zu 50 Teile (M0467) können Sie unter untenstehendem Link erwerben
B12: 5 | C12: 0 | D12: 0 | E12: 0 | F12: 0 | G12: 0 | H12: 0 | I12: 0 | J12: 0 | K12: 0 | L12: 0 | N12: - | Q12: Änderungsstand | AF12: =HYPERLINK("https://www.sixsigmablackbelt.de/preisvergleich/","Preise und Bestellung") -> Preise und Bestellung
B13: 6 | X13: Bewertung Ergebnis / Fleiss Kappa
B14: 7 | Q14: Prüfer A | U14: Prüfer A | X14: Ergebnis <= | AA14: 0.7 | AB14: 0.8 | AC14: 1 | AF14: Fragen gerne an:
B15: 8 | Q15: Prüfer B | U15: Prüfer B | X15: Fleiss Kappa <= | AA15: 0.7 | AB15: 0.8 | AC15: 1 | AF15: =HYPERLINK("mailto:roland.schnurr@sixsigmablackbelt.de","roland.schnurr@sixsigmablackbelt.de") -> roland.schnurr@sixsigmablackbelt.de
B16: 9 | Q16: Prüfer C | U16: Prüfer C | X16: Spezifikation
B17: 10 | Q17: Prüfdatum | X17: Untere Spez.-Grenze
B18: 11 | Q18: Prüfung durch | X18: Obere Spez.-Grenze
B19: 12 | Q19: Prüfung durch Name | X19: Auflösung
B20: 13
B21: 14 | Q21: Anzahl Durchgänge | U21: =IF(C8<>"",COUNT(C8:E8),"") -> 3
B22: 15 | Q22: Anzahl Teile | U22: =IF(C8<>"",COUNT(C8:C57),"") -> 5
B23: 16 | Q23: Anzahl Prüfer | U23: =IF(C8<>"",COUNT(C8,F8,I8),"") -> 3
B24: 17
B25: 18 | P25: Prüfer
B26: 19 | S26: Innerhalb Prüfer | Y26: Zwischen den Prüfern
B27: 20 | S27: =U14 -> Prüfer A | U27: =U15 -> Prüfer B | W27: =U16 -> Prüfer C
B28: 21 | P28: Geprüft gesamt | S28: =calculation!S28 -> 5 | U28: =calculation!U28 -> 5 | W28: =calculation!W28 -> 5 | Y28: =calculation!Y28 -> 5
B29: 22 | P29: Anzahl richtig | S29: =calculation!S29 -> 5 | U29: =calculation!U29 -> 5 | W29: =calculation!W29 -> 5 | Y29: =calculation!Y29 -> 5
B30: 23 | P30: 95% obere CI | S30: =calculation!S30 -> 1 | U30: =calculation!U30 -> 1 | W30: =calculation!W30 -> 1 | Y30: =calculation!Y30 -> 1
B31: 24 | P31: Ergebnis | S31: =calculation!S31 -> 1 | U31: =calculation!U31 -> 1 | W31: =calculation!W31 -> 1 | Y31: =calculation!Y31 -> 1
B32: 25 | P32: 95% untere CI | S32: =calculation!S32 -> 0.4781762499 | U32: =calculation!U32 -> 0.4781762499 | W32: =calculation!W32 -> 0.4781762499 | Y32: =calculation!Y32 -> 0.4781762499
B33: 26 | P33: Fleiss Kappa | S33: =calculation!S33 -> 1 | U33: =calculation!U33 -> 1 | W33: =calculation!W33 -> 1 | Y33: =calculation!Y33 -> 1
B34: 27
B35: 28 | P35: Prüfer vs. Referenz
B36: 29 | S36: Einzelne Prüfer vs. Referenz | Y36: Alle Prüfer vs. Referenz
B37: 30 | S37: =S27 -> Prüfer A | U37: =U27 -> Prüfer B | W37: =W27 -> Prüfer C
B38: 31 | P38: Geprüft gesamt | S38: =calculation!S38 -> 5 | U38: =calculation!U38 -> 5 | W38: =calculation!W38 -> 5 | Y38: =calculation!Y38 -> 5
B39: 32 | P39: Anzahl richtig | S39: =calculation!S39 -> 5 | U39: =calculation!U39 -> 5 | W39: =calculation!W39 -> 5 | Y39: =calculation!Y39 -> 5
B40: 33 | P40: falsch positiv | S40: =calculation!S40 -> 0 | U40: =calculation!U40 -> 0 | W40: =calculation!W40 -> 0
B41: 34 | P41: falsch negativ | S41: =calculation!S41 -> 0 | U41: =calculation!U41 -> 0 | W41: =calculation!W41 -> 0
B42: 35 | P42: gemixt | S42: =calculation!S42 -> 0 | U42: =calculation!U42 -> 0 | W42: =calculation!W42 -> 0
B43: 36 | P43: 95% obere CI | S43: =calculation!S43 -> 1 | U43: =calculation!U43 -> 1 | W43: =calculation!W43 -> 1 | Y43: =calculation!Y43 -> 1
B44: 37 | P44: Ergebnis | S44: =calculation!S44 -> 1 | U44: =calculation!U44 -> 1 | W44: =calculation!W44 -> 1 | Y44: =calculation!Y44 -> 1
B45: 38 | P45: 95% untere CI | S45: =calculation!S45 -> 0.4781762499 | U45: =calculation!U45 -> 0.4781762499 | W45: =calculation!W45 -> 0.4781762499 | Y45: =calculation!Y45 -> 0.4781762499
B46: 39 | P46: Fleiss Kappa | S46: =calculation!S46 -> 1 | U46: =calculation!U46 -> 1 | W46: =calculation!W46 -> 1 | Y46: =calculation!Y46 -> 1
B47: 40
B48: =B47+1 -> 41 | P48: Anmerkungen:
B49: =B48+1 -> 42 | P49: Mindestens 3 Prüfer und 3 Durchgänge, ansonsten falsche Ergebnisse
B50: 43 | P50: Bosch ermittelt aus allen Kappa Werten den Minimalwert und bewertet anhand dessen
B51: 44 | P51: das Messsystem. Falls Sie weniger als 50 Werte erfassen wollen, bitte nur die
B52: 45 | P52: Prüfergebnisse und Referenz entfernen. Der Code verändert sich automatisch und
B53: 46 | P53: ist geschützt.
B54: 47
B55: 48
B56: 49
B57: 50
C59: Datum: | D59: ________ | M59: Unterschrift: | N59: ___________________________________ | X59: Abteilung: | Y59: _______________________________

Sheet calculation (hidden)
L2: Messsystemanalyse Verfahren 7 attributive Merkmale (Bosch Heft Nr. 10 / AIAG)
AG3: =TODAY() -> 2026-04-07 | AI3: 2026-04-07 | AJ3: =IF(AG3=AI3,1,0) -> 1 | BA3: A*B*C
BA4: nik | BD4: nik*(Nik-1)
AG5: 3 Durchl | AI5: mix | AJ5: 2 Durchl. | BA5: k=1 | BB5: K=2 | BD5: k=1 | BE5: K=2
B6: Part | C6: Appraiser-Evaluation | L6: Stan-dard | M6: Standard Value | N6: Code | AG6: A | AO6: B | AS6: C | AW6: All | BA6: 0 | BB6: 1 | BD6: 0 | BE6: 1 | BJ6: A*A | BL6: B*B | BO6: C*C | BT6: A1-Ref | BU6: A2-Ref | BV6: A3-Ref | BW6: B1-Ref | BX6: B2-Ref | BY6: B3-Ref | BZ6: C1-Ref | CA6: C2-Ref | CB6: C3-Ref
C7: A-1 | D7: A-2 | E7: A-3 | F7: B-1 | G7: B-2 | H7: B-3 | I7: C-1 | J7: C-2 | K7: C-3 | AG7: =IF(C8<>"",IF(AND(C8=D8,D8=E8),1,0),"") -> 1 | AH7: =IF(C8<>"",IF(AND(C8=D8,D8=E8,E8=L8),1,0),"") -> 1 | AI7: =IF(AG7<>"",IF(AG7<>AH7,$L8,""),"") ->  | AJ7: =IF(C8<>"",IF(AND(C8=D8),1,0),"") -> 1 | AK7: =IF(C8<>"",IF(AND(C8=D8,D8=L8),1,0),"") -> 1 | AL7: =IF(AJ7<>"",IF(AJ7<>AK7,$L8,""),"") ->  | AO7: =IF(F8<>"",IF(AND(F8=G8,F8=H8),1,0),"") -> 1 | AP7: =IF(F8<>"",IF(AND(F8=G8,G8=H8,H8=L8),1,0),"") -> 1 | AQ7: =IF(AO7<>"",IF(AO7<>AP7,L8,""),"") ->  | AS7: =IF(I8<>"",IF(AND(I8=J8,J8=K8),1,0),"") -> 1 | AT7: =IF(I8<>"",IF(AND(I8=J8,J8=K8,K8=L8),1,0),"") -> 1 | AU7: =IF(AS7<>"",IF(AS7<>AT7,L8,""),"") ->  | AW7: =IF(C8<>"",IF(OR(SUM(C8:K8)=COUNT(C8:K8),SUM(C8:K8)=0),1,0),"") -> 1 | AX7: =IF(AT7<>"",IF(AH7+AP7+AT7=3,1,0),"") -> 1
B8: 1 | C8: =IF(input!C8="","",input!C8) -> 1 | D8: =IF(input!D8="","",input!D8) -> 1 | E8: =IF(input!E8="","",input!E8) -> 1 | F8: =IF(input!F8="","",input!F8) -> 1 | G8: =IF(input!G8="","",input!G8) -> 1 | H8: =IF(input!H8="","",input!H8) -> 1 | I8: =IF(input!I8="","",input!I8) -> 1 | J8: =IF(input!J8="","",input!J8) -> 1 | K8: =IF(input!K8="","",input!K8) -> 1 | L8: =IF(input!L8="","",input!L8) -> 1 | N8: =IF(C8<>"",IF(SUM(C8:K8)=COUNT(C8:K8),"+",IF(SUM(C8:K8)=0,"-","x")),"") -> + | Q8: Reference Value | X8: Date Preformed | AG8: 1 | AH8: 1 | AI8: =IF(AG8<>"",IF(AG8<>AH8,$L9,""),"") ->  | AJ8: =IF(C9<>"",IF(AND(C9=D9),1,0),"") -> 1 | AK8: =IF(C9<>"",IF(AND(C9=D9,D9=L9),1,0),"") -> 1 | AL8: =IF(AJ8<>"",IF(AJ8<>AK8,$L9,""),"") ->  | AO8: 1 | AP8: 1 | AS8: 1 | AT8: 1 | AW8: 1 | AX8: =IF(AT8<>"",IF(AH8+AP8+AT8=3,1,0),"") -> 1 | BA8: =COUNTIF(C8:K8,0) -> 0 | BB8: =COUNTIF(C8:K8,1) -> 9 | BD8: =BA8*(BA8-1) -> 0 | BE8: =BB8*(BB8-1) -> 72 | BG8: =IF(C8="","",IF(C8=D8,2,0)) -> 2 | BH8: =IF(E8="","",IF(C8=E8,2,0)) -> 2 | BI8: =IF(D8="","",IF(D8=E8,2,0)) -> 2 | BJ8: =SUM(BG8:BI8) -> 6 | BK8: =IF(G8="","",IF(F8=G8,2,0)) -> 2 | BL8: =IF(H8="","",IF(F8=H8,2,0)) -> 2 | BM8: =IF(H8="","",IF(G8=H8,2,0)) -> 2 | BN8: =SUM(BK8:BM8) -> 6 | BO8: =IF(J8="","",IF(I8=J8,2,0)) -> 2 | BP8: =IF(K8="","",IF(I8=K8,2,0)) -> 2 | BQ8: =IF(K8="","",IF(J8=K8,2,0)) -> 2 | BR8: =SUM(BO8:BQ8) -> 6 | BS8: =BD8+BE8 -> 72 | BT8: =IF(C8="","",IF(C8=$L8,2,0)) -> 2 | BU8: =IF(D8="","",IF(D8=$L8,2,0)) -> 2 | BV8: =IF(E8="","",IF(E8=$L8,2,0)) -> 2 | BW8: =IF(F8="","",IF(F8=$L8,2,0)) -> 2 | BX8: =IF(G8="","",IF(G8=$L8,2,0)) -> 2 | BY8: =IF(H8="","",IF(H8=$L8,2,0)) -> 2 | BZ8: =IF(I8="","",IF(I8=$L8,2,0)) -> 2 | CA8: =IF(J8="","",IF(J8=$L8,2,0)) -> 2 | CB8: =IF(K8="","",IF(K8=$L8,2,0)) -> 2
B9: =B8+1 -> 2 | C9: =IF(input!C9="","",input!C9) -> 1 | D9: =IF(input!D9="","",input!D9) -> 1 | E9: =IF(input!E9="","",input!E9) -> 1 | F9: =IF(input!F9="","",input!F9) -> 1 | G9: =IF(input!G9="","",input!G9) -> 1 | H9: =IF(input!H9="","",input!H9) -> 1 | I9: =IF(input!I9="","",input!I9) -> 1 | J9: =IF(input!J9="","",input!J9) -> 1 | K9: =IF(input!K9="","",input!K9) -> 1 | L9: =IF(input!L9="","",input!L9) -> 1 | N9: =IF(C9<>"",IF(SUM(C9:K9)=COUNT(C9:K9),"+",IF(SUM(C9:K9)=0,"-","x")),"") -> + | Q9: Specification Number | X9: Gage Name | AG9: 1 | AH9: 1 | AJ9: 1 | AK9: 1 | AO9: 1 | AP9: 1 | AS9: 1 | AT9: 1 | AW9: 1 | AX9: 1 | BA9: 0 | BB9: 9 | BD9: =BA9*(BA9-1) -> 0 | BE9: 72 | BG9: 2 | BH9: 2 | BI9: 2 | BJ9: =SUM(BG9:BI9) -> 6 | BK9: 2 | BL9: 2 | BM9: 2 | BN9: =SUM(BK9:BM9) -> 6 | BO9: 2 | BP9: 2 | BQ9: 2 | BR9: =SUM(BO9:BQ9) -> 6 | BS9: =BD9+BE9 -> 72 | BT9: 2 | BU9: 2 | BV9: 2 | BW9: 2 | BX9: 2 | BY9: 2 | BZ9: 2 | CA9: 2 | CB9: 2
B10: 3 | C10: =IF(input!C10="","",input!C10) -> 0 | D10: =IF(input!D10="","",input!D10) -> 0 | E10: =IF(input!E10="","",input!E10) -> 0 | F10: =IF(input!F10="","",input!F10) -> 0 | G10: =IF(input!G10="","",input!G10) -> 0 | H10: =IF(input!H10="","",input!H10) -> 0 | I10: =IF(input!I10="","",input!I10) -> 0 | J10: =IF(input!J10="","",input!J10) -> 0 | K10: =IF(input!K10="","",input!K10) -> 0 | L10: =IF(input!L10="","",input!L10) -> 0 | N10: - | Q10: Characteristic Name | X10: Gage Number | AG10: 1 | AH10: 1 | AJ10: 1 | AK10: 1 | AO10: 1 | AP10: 1 | AS10: 1 | AT10: 1 | AW10: 1 | AX10: 1 | BA10: 9 | BB10: 0 | BD10: 72 | BE10: 0 | BG10: 2 | BH10: 2 | BI10: 2 | BJ10: 6 | BK10: 2 | BL10: 2 | BM10: 2 | BN10: 6 | BO10: 2 | BP10: 2 | BQ10: 2 | BR10: 6 | BS10: 72 | BT10: 2 | BU10: 2 | BV10: 2 | BW10: 2 | BX10: 2 | BY10: 2 | BZ10: 2 | CA10: 2 | CB10: 2
B11: 4 | C11: =IF(input!C11="","",input!C11) -> 0 | D11: =IF(input!D11="","",input!D11) -> 0 | E11: =IF(input!E11="","",input!E11) -> 0 | F11: =IF(input!F11="","",input!F11) -> 0 | G11: =IF(input!G11="","",input!G11) -> 0 | H11: =IF(input!H11="","",input!H11) -> 0 | I11: =IF(input!I11="","",input!I11) -> 0 | J11: =IF(input!J11="","",input!J11) -> 0 | K11: =IF(input!K11="","",input!K11) -> 0 | L11: =IF(input!L11="","",input!L11) -> 0 | N11: - | Q11: Characteristic Type | X11: Gage Type | AG11: 1 | AH11: 1 | AJ11: 1 | AK11: 1 | AO11: 1 | AP11: 1 | AS11: 1 | AT11: 1 | AW11: 1 | AX11: 1 | BA11: 9 | BB11: 0 | BD11: 72 | BE11: 0 | BG11: 2 | BH11: 2 | BI11: 2 | BJ11: 6 | BK11: 2 | BL11: 2 | BM11: 2 | BN11: 6 | BO11: 2 | BP11: 2 | BQ11: 2 | BR11: 6 | BS11: 72 | BT11: 2 | BU11: 2 | BV11: 2 | BW11: 2 | BX11: 2 | BY11: 2 | BZ11: 2 | CA11: 2 | CB11: 2
B12: 5 | C12: =IF(input!C12="","",input!C12) -> 0 | D12: =IF(input!D12="","",input!D12) -> 0 | E12: =IF(input!E12="","",input!E12) -> 0 | F12: =IF(input!F12="","",input!F12) -> 0 | G12: =IF(input!G12="","",input!G12) -> 0 | H12: =IF(input!H12="","",input!H12) -> 0 | I12: =IF(input!I12="","",input!I12) -> 0 | J12: =IF(input!J12="","",input!J12) -> 0 | K12: =IF(input!K12="","",input!K12) -> 0 | L12: =IF(input!L12="","",input!L12) -> 0 | N12: - | Q12: TPS Anzahl | BA12: 9 | BB12: 0 | BD12: 72 | BE12: 0 | BG12: 2 | BH12: 2 | BI12: 2 | BJ12: 6 | BK12: 2 | BL12: 2 | BM12: 2 | BN12: 6 | BO12: 2 | BP12: 2 | BQ12: 2 | BR12: 6 | BS12: 72 | BT12: 2 | BU12: 2 | BV12: 2 | BW12: 2 | BX12: 2 | BY12: 2 | BZ12: 2 | CA12: 2 | CB12: 2
B13: 6 | X13: Score < | AA13: 0.81 | AB13: 0.95 | AC13: 1 | BA13: 0 | BB13: 0 | BD13: 0 | BE13: 0 | BJ13: 0 | BN13: 0 | BR13: 0 | BS13: 0
B14: 7 | Q14: Prüfer A | U14: Prüfer A | X14: Fleiss Kappa < | AA14: 0.81 | AB14: 0.95 | AC14: 1 | BA14: 0 | BB14: 0 | BD14: 0 | BE14: 0 | BJ14: 0 | BN14: 0 | BR14: 0 | BS14: 0
B15: 8 | Q15: Prüfer B | U15: Prüfer B | X15: Specifications | BA15: 0 | BB15: 0 | BD15: 0 | BE15: 0 | BJ15: 0 | BN15: 0 | BR15: 0 | BS15: 0
B16: 9 | Q16: Prüfer C | U16: Prüfer C | X16: - LSL | BA16: 0 | BB16: 0 | BD16: 0 | BE16: 0 | BJ16: 0 | BN16: 0 | BR16: 0 | BS16: 0
B17: 10 | Q17: Prüfdatum | X17: - USL | BA17: 0 | BB17: 0 | BD17: 0 | BE17: 0 | BJ17: 0 | BN17: 0 | BR17: 0 | BS17: 0
B18: 11 | Q18: Prüfung durch Id | X18: Resolution | BA18: 0 | BB18: 0 | BD18: 0 | BE18: 0 | BJ18: 0 | BN18: 0 | BR18: 0 | BS18: 0
B19: 12 | Q19: Prüfung durch Name | BA19: 0 | BB19: 0 | BD19: 0 | BE19: 0 | BJ19: 0 | BN19: 0 | BR19: 0 | BS19: 0
B20: 13 | BA20: 0 | BB20: 0 | BD20: 0 | BE20: 0 | BJ20: 0 | BN20: 0 | BR20: 0 | BS20: 0
B21: 14 | Q21: Anzahl Durchgänge | U21: =IF(C8<>"",COUNT(C8:E8),"") -> 3 | BA21: 0 | BB21: 0 | BD21: 0 | BE21: 0 | BJ21: 0 | BN21: 0 | BR21: 0 | BS21: 0
B22: 15 | Q22: Anzahl Teile | U22: =IF(C8<>"",COUNT(C8:C57),"") -> 5 | BA22: 0 | BB22: 0 | BD22: 0 | BE22: 0 | BJ22: 0 | BN22: 0 | BR22: 0 | BS22: 0
B23: 16 | Q23: Anzahl of Prüfer | U23: =IF(C8<>"",COUNT(C8,F8,I8),"") -> 3 | BA23: 0 | BB23: 0 | BD23: 0 | BE23: 0 | BJ23: 0 | BN23: 0 | BR23: 0 | BS23: 0
B24: 17 | BA24: 0 | BB24: 0 | BD24: 0 | BE24: 0 | BJ24: 0 | BN24: 0 | BR24: 0 | BS24: 0
B25: 18 | P25: Prüfer | BA25: 0 | BB25: 0 | BD25: 0 | BE25: 0 | BJ25: 0 | BN25: 0 | BR25: 0 | BS25: 0
B26: 19 | S26: Innerhalb Prüfer | Y26: Zwischen | BA26: 0 | BB26: 0 | BD26: 0 | BE26: 0 | BJ26: 0 | BN26: 0 | BR26: 0 | BS26: 0
B27: 20 | S27: =U14 -> Prüfer A | U27: =U15 -> Prüfer B | W27: =U16 -> Prüfer C | Y27: Prüfer | BA27: 0 | BB27: 0 | BD27: 0 | BE27: 0 | BJ27: 0 | BN27: 0 | BR27: 0 | BS27: 0
B28: 21 | P28: Geprüft gesamt | S28: =IF(C8<>"",COUNT(C8:C57),"") -> 5 | U28: =IF(F8<>"",COUNT(F8:F57),"") -> 5 | W28: =IF(I8<>"",COUNT(I8:I57),"") -> 5 | Y28: =S28 -> 5 | BA28: 0 | BB28: 0 | BD28: 0 | BE28: 0 | BJ28: 0 | BN28: 0 | BR28: 0 | BS28: 0
B29: 22 | P29: # Matched | S29: =IF(U21=3,IF(C8<>"",SUM(AG7:AG56),""),IF(C8<>"",SUM(AJ7:AJ56),"")) -> 5 | U29: =IF(F8<>"",SUM(AO7:AO56),"") -> 5 | W29: =IF(I8<>"",SUM(AS7:AS56),"") -> 5 | Y29: =IF(S28<>"",SUM(AW7:AW56),"") -> 5 | BA29: 0 | BB29: 0 | BD29: 0 | BE29: 0 | BJ29: 0 | BN29: 0 | BR29: 0 | BS29: 0
B30: 23 | P30: 95% upper CI | S30: =IF(S29<>"",IF(S28=S29,1,(2*(S29+1)*FINV(0.025,2*(S29+1),2*(S28-S29)))/(2*(S28-S29)+2*(S29+1)*FINV(0.025,2*(S29+1),2*(S28-S29)))),"") -> 1 | U30: =IF(U29<>"",IF(U28=U29,1,(2*(U29+1)*FINV(0.025,2*(U29+1),2*(U28-U29)))/(2*(U28-U29)+2*(U29+1)*FINV(0.025,2*(U29+1),2*(U28-U29)))),"") -> 1 | W30: =IF(W29<>"",IF(W28=W29,1,(2*(W29+1)*FINV(0.025,2*(W29+1),2*(W28-W29)))/(2*(W28-W29)+2*(W29+1)*FINV(0.025,2*(W29+1),2*(W28-W29)))),"") -> 1 | Y30: =IF(Y29<>"",IF(Y28=Y29,1,(2*(Y29+1)*FINV(0.025,2*(Y29+1),2*(Y28-Y29)))/(2*(Y28-Y29)+2*(Y29+1)*FINV(0.025,2*(Y29+1),2*(Y28-Y29)))),"") -> 1 | BA30: 0 | BB30: 0 | BD30: 0 | BE30: 0 | BJ30: 0 | BN30: 0 | BR30: 0 | BS30: 0
B31: 24 | P31: Ergebnis | S31: =IF(S28<>"",(S29/S28)/AJ3,"") -> 1 | U31: =IF(U28<>"",(U29/U28)/AJ3,"") -> 1 | W31: =IF(W28<>"",(W29/W28)/AJ3,"") -> 1 | Y31: =IF(Y28<>"",Y29/Y28,"") -> 1 | BA31: 0 | BB31: 0 | BD31: 0 | BE31: 0 | BJ31: 0 | BN31: 0 | BR31: 0 | BS31: 0
B32: 25 | P32: 95% lower CI | S32: =IF(S29<>"",IF(S29=0,0,(2*S29*FINV(0.975,2*S29,2*(S28-S29+1)))/(2*(S28-S29+1)+2*S29*FINV(0.975,2*S29,2*(S28-S29+1)))),"") -> 0.4781762499 | U32: =IF(U29<>"",IF(S29=0,0,(2*U29*FINV(0.975,2*U29,2*(U28-U29+1)))/(2*(U28-U29+1)+2*U29*FINV(0.975,2*U29,2*(U28-U29+1)))),"") -> 0.4781762499 | W32: =IF(W29<>"",IF(S29=0,0,(2*W29*FINV(0.975,2*W29,2*(W28-W29+1)))/(2*(W28-W29+1)+2*W29*FINV(0.975,2*W29,2*(W28-W29+1)))),"") -> 0.4781762499 | Y32: =IF(Y29<>"",IF(S29=0,0,(2*Y29*FINV(0.975,2*Y29,2*(Y28-Y29+1)))/(2*(Y28-Y29+1)+2*Y29*FINV(0.975,2*Y29,2*(Y28-Y29+1)))),"") -> 0.4781762499 | BA32: 0 | BB32: 0 | BD32: 0 | BE32: 0 | BJ32: 0 | BN32: 0 | BR32: 0 | BS32: 0
B33: 26 | P33: Fleiss Kappa | S33: =BJ73/AJ3 -> 1 | U33: =BN73/AJ3 -> 1 | W33: =BR73/AJ3 -> 1 | Y33: =BS73 -> 1 | BA33: 0 | BB33: 0 | BD33: 0 | BE33: 0 | BJ33: 0 | BN33: 0 | BR33: 0 | BS33: 0
B34: 27 | BA34: 0 | BB34: 0 | BD34: 0 | BE34: 0 | BJ34: 0 | BN34: 0 | BR34: 0 | BS34: 0
B35: 28 | P35: Prüfer vs. Standard | BA35: 0 | BB35: 0 | BD35: 0 | BE35: 0 | BJ35: 0 | BN35: 0 | BR35: 0 | BS35: 0
B36: 29 | P36: Source | S36: Einzelne Prüfer vs. Standard | Y36: Alle Prüfer vs. Standard | BA36: 0 | BB36: 0 | BD36: 0 | BE36: 0 | BJ36: 0 | BN36: 0 | BR36: 0 | BS36: 0
B37: 30 | S37: =S27 -> Prüfer A | U37: =U27 -> Prüfer B | W37: =W27 -> Prüfer C | BA37: 0 | BB37: 0 | BD37: 0 | BE37: 0 | BJ37: 0 | BN37: 0 | BR37: 0 | BS37: 0
B38: 31 | N38: =IF(C38<>"",IF(SUM(C38:K38)=9,"+",IF(SUM(C38:K38)=0,"-","x")),"") ->  | P38: Geprüft gesamt | S38: =S28 -> 5 | U38: =U28 -> 5 | W38: =W28 -> 5 | Y38: =S38 -> 5 | BA38: 0 | BB38: 0 | BD38: 0 | BE38: 0 | BJ38: 0 | BN38: 0 | BR38: 0 | BS38: 0
B39: 32 | P39: # Matched | S39: =IF(S38<>"",SUM(AH7:AH56),"") -> 5 | U39: =IF(U38<>"",SUM(AP7:AP56),"") -> 5 | W39: =IF(W38<>"",SUM(AT7:AT56),"") -> 5 | Y39: =IF(S38<>"",SUM(AX7:AX56),"") -> 5 | AO39: =IF(F40<>"",IF(AND(F40=G40,F40=H40),1,0),"") ->  | AP39: =IF(F40<>"",IF(AND(F40=G40,G40=H40,H40=L40),1,0),"") ->  | AQ39: =IF(AO39<>"",IF(AO39<>AP39,L40,""),"") ->  | AS39: =IF(I40<>"",IF(AND(I40=J40,J40=K40),1,0),"") ->  | AT39: =IF(I40<>"",IF(AND(I40=J40,J40=K40,K40=L40),1,0),"") ->  | AU39: =IF(AS39<>"",IF(AS39<>AT39,L40,""),"") ->  | AW39: =IF(C40<>"",IF(OR(SUM(C40:K40)=COUNT(C40:K40),SUM(C40:K40)=0),1,0),"") ->  | BA39: 0 | BB39: 0 | BD39: 0 | BE39: 0 | BJ39: 0 | BN39: 0 | BR39: 0 | BS39: 0
B40: 33 | P40: False Positive (*5) | S40: =IF(S38<>"",COUNTIF(AI7:AI56,"=1"),"") -> 0 | U40: =IF(U38<>"",COUNTIF(AQ7:AQ56,"=1"),"") -> 0 | W40: =IF(W38<>"",COUNTIF(AU7:AU56,"=1"),"") -> 0 | AX40: =IF(AT40<>"",IF(AH40+AP40+AT40=3,1,0),"") ->  | BA40: =COUNTIF(C40:K40,0) -> 0 | BB40: =COUNTIF(C40:K40,1) -> 0 | BD40: 0 | BE40: 0 | BG40: =IF(C40="","",IF(C40=D40,2,0)) ->  | BH40: =IF(E40="","",IF(C40=E40,2,0)) ->  | BI40: =IF(D40="","",IF(D40=E40,2,0)) ->  | BJ40: 0 | BK40: =IF(G40="","",IF(F40=G40,2,0)) ->  | BL40: =IF(H40="","",IF(F40=H40,2,0)) ->  | BM40: =IF(H40="","",IF(G40=H40,2,0)) ->  | BN40: 0 | BO40: =IF(J40="","",IF(I40=J40,2,0)) ->  | BP40: =IF(K40="","",IF(I40=K40,2,0)) ->  | BQ40: =IF(K40="","",IF(J40=K40,2,0)) ->  | BR40: 0 | BS40: 0 | BT40: =IF(C40="","",IF(C40=$L40,2,0)) ->  | BU40: =IF(D40="","",IF(D40=$L40,2,0)) ->  | BV40: =IF(E40="","",IF(E40=$L40,2,0)) ->  | BW40: =IF(F40="","",IF(F40=$L40,2,0)) ->  | BX40: =IF(G40="","",IF(G40=$L40,2,0)) ->  | BY40: =IF(H40="","",IF(H40=$L40,2,0)) ->  | BZ40: =IF(I40="","",IF(I40=$L40,2,0)) ->  | CA40: =IF(J40="","",IF(J40=$L40,2,0)) ->  | CB40: =IF(K40="","",IF(K40=$L40,2,0)) -> 
B41: 34 | P41: False Negative (*6) | S41: =IF(S38<>"",COUNTIF(AI7:AI56,"=0"),"") -> 0 | U41: =IF(U38<>"",COUNTIF(AQ7:AQ56,"=0"),"") -> 0 | W41: =IF(W38<>"",COUNTIF(AU7:AU56,"=0"),"") -> 0 | BA41: 0 | BB41: 0 | BD41: 0 | BE41: 0 | BJ41: 0 | BN41: 0 | BR41: 0 | BS41: 0
B42: 35 | P42: Mixed | S42: =IF(S38<>"",S38-S39-S40-S41,"") -> 0 | U42: =IF(U38<>"",U38-U39-U40-U41,"") -> 0 | W42: =IF(W38<>"",W38-W39-W40-W41,"") -> 0 | BA42: 0 | BB42: 0 | BD42: 0 | BE42: 0 | BJ42: 0 | BN42: 0 | BR42: 0 | BS42: 0
B43: 36 | P43: 95% upper CI (*7) | S43: =IF(S39<>"",IF(S38=S39,1,(2*(S39+1)*FINV(0.025,2*(S39+1),2*(S38-S39)))/(2*(S38-S39)+2*(S39+1)*FINV(0.025,2*(S39+1),2*(S38-S39)))),"") -> 1 | U43: =IF(U39<>"",IF(U38=U39,1,(2*(U39+1)*FINV(0.025,2*(U39+1),2*(U38-U39)))/(2*(U38-U39)+2*(U39+1)*FINV(0.025,2*(U39+1),2*(U38-U39)))),"") -> 1 | W43: =IF(W39<>"",IF(W38=W39,1,(2*(W39+1)*FINV(0.025,2*(W39+1),2*(W38-W39)))/(2*(W38-W39)+2*(W39+1)*FINV(0.025,2*(W39+1),2*(W38-W39)))),"") -> 1 | Y43: =IF(Y39<>"",IF(Y38=Y39,1,(2*(Y39+1)*FINV(0.025,2*(Y39+1),2*(Y38-Y39)))/(2*(Y38-Y39)+2*(Y39+1)*FINV(0.025,2*(Y39+1),2*(Y38-Y39)))),"") -> 1 | BA43: 0 | BB43: 0 | BD43: 0 | BE43: 0 | BJ43: 0 | BN43: 0 | BR43: 0 | BS43: 0
B44: 37 | P44: Ergebnis | S44: =IF(S38<>"",S39/S38,"") -> 1 | U44: =IF(U38<>"",U39/U38,"") -> 1 | W44: =IF(W38<>"",W39/W38,"") -> 1 | Y44: =IF(Y38<>"",Y39/Y38,"") -> 1 | BA44: 0 | BB44: 0 | BD44: 0 | BE44: 0 | BJ44: 0 | BN44: 0 | BR44: 0 | BS44: 0
B45: 38 | P45: 95% lower CI (*7) | S45: =IF(S39<>"",IF(S39=0,0,(2*S39*FINV(0.975,2*S39,2*(S38-S39+1)))/(2*(S38-S39+1)+2*S39*FINV(0.975,2*S39,2*(S38-S39+1)))),"") -> 0.4781762499 | U45: =IF(U39<>"",IF(S39=0,0,(2*U39*FINV(0.975,2*U39,2*(U38-U39+1)))/(2*(U38-U39+1)+2*U39*FINV(0.975,2*U39,2*(U38-U39+1)))),"") -> 0.4781762499 | W45: =IF(W39<>"",IF(S39=0,0,(2*W39*FINV(0.975,2*W39,2*(W38-W39+1)))/(2*(W38-W39+1)+2*W39*FINV(0.975,2*W39,2*(W38-W39+1)))),"") -> 0.4781762499 | Y45: =IF(Y39<>"",IF(S39=0,0,(2*Y39*FINV(0.975,2*Y39,2*(Y38-Y39+1)))/(2*(Y38-Y39+1)+2*Y39*FINV(0.975,2*Y39,2*(Y38-Y39+1)))),"") -> 0.4781762499 | BA45: 0 | BB45: 0 | BD45: 0 | BE45: 0 | BJ45: 0 | BN45: 0 | BR45: 0 | BS45: 0
B46: 39 | P46: Fleiss Kappa | S46: =BT74 -> 1 | U46: =BW74 -> 1 | W46: =BZ74 -> 1 | Y46: =BT75 -> 1 | BA46: 0 | BB46: 0 | BD46: 0 | BE46: 0 | BJ46: 0 | BN46: 0 | BR46: 0 | BS46: 0
B47: 40 | BA47: 0 | BB47: 0 | BD47: 0 | BE47: 0 | BJ47: 0 | BN47: 0 | BR47: 0 | BS47: 0
B48: =B47+1 -> 41 | P48: Anmerkungen: | BA48: 0 | BB48: 0 | BD48: 0 | BE48: 0 | BJ48: 0 | BN48: 0 | BR48: 0 | BS48: 0
B49: =B48+1 -> 42 | BA49: 0 | BB49: 0 | BD49: 0 | BE49: 0 | BJ49: 0 | BN49: 0 | BR49: 0 | BS49: 0
B50: 43 | BA50: 0 | BB50: 0 | BD50: 0 | BE50: 0 | BJ50: 0 | BN50: 0 | BR50: 0 | BS50: 0
B51: 44 | BA51: 0 | BB51: 0 | BD51: 0 | BE51: 0 | BJ51: 0 | BN51: 0 | BR51: 0 | BS51: 0
B52: 45 | BA52: 0 | BB52: 0 | BD52: 0 | BE52: 0 | BJ52: 0 | BN52: 0 | BR52: 0 | BS52: 0
B53: 46 | BA53: 0 | BB53: 0 | BD53: 0 | BE53: 0 | BJ53: 0 | BN53: 0 | BR53: 0 | BS53: 0
B54: 47 | BA54: 0 | BB54: 0 | BD54: 0 | BE54: 0 | BJ54: 0 | BN54: 0 | BR54: 0 | BS54: 0
B55: 48 | BA55: 0 | BB55: 0 | BD55: 0 | BE55: 0 | BJ55: 0 | BN55: 0 | BR55: 0 | BS55: 0
B56: 49 | BA56: 0 | BB56: 0 | BD56: 0 | BE56: 0 | BJ56: 0 | BN56: 0 | BR56: 0 | BS56: 0
B57: 50 | BA57: 0 | BB57: 0 | BD57: 0 | BE57: 0 | BJ57: 0 | BN57: 0 | BR57: 0 | BS57: 0
AZ58: Summe | BA58: =SUM(BA8:BA57) -> 27 | BB58: =SUM(BB8:BB57) -> 18 | BD58: =SUM(BD8:BD57) -> 216 | BE58: =SUM(BE8:BE57) -> 144 | BJ58: =SUM(BJ8:BJ57) -> 30 | BN58: =SUM(BN8:BN57) -> 30 | BR58: =SUM(BR8:BR57) -> 30 | BS58: =SUM(BS8:BS57) -> 360 | BT58: =six_m(BT8:BT57) -> 10 | BU58: =six_m(BU8:BU57) -> 10 | BV58: =six_m(BV8:BV57) -> 10 | BW58: =six_m(BW8:BW57) -> 10 | BX58: =six_m(BX8:BX57) -> 10 | BY58: =six_m(BY8:BY57) -> 10 | BZ58: =six_m(BZ8:BZ57) -> 10 | CA58: =six_m(CA8:CA57) -> 10 | CB58: =six_m(CB8:CB57) -> 10
BG59: =COUNT(BG8:BG57)*2 -> 10 | BH59: =COUNT(BH8:BH57)*2 -> 10 | BI59: =COUNT(BI8:BI57)*2 -> 10 | BJ59: =SUM(BG59:BI59) -> 30 | BK59: =COUNT(BK8:BK57)*2 -> 10 | BL59: 10 | BM59: 10 | BN59: =SUM(BK59:BM59) -> 30 | BO59: 10 | BP59: 10 | BQ59: 10 | BR59: =SUM(BO59:BQ59) -> 30 | BS59: =BD68 -> 360 | BT59: =COUNT(BT8:BT57)*2 -> 10 | BU59: =COUNT(BU8:BU57)*2 -> 10 | BV59: 10 | BW59: 10 | BX59: 10 | BY59: 10 | BZ59: 10 | CA59: 10 | CB59: 10
AG60: A | AI60: B | AO60: C | BA60: =BA58+BB58 -> 45 | BD60: =BD58+BE58 -> 360 | BJ60: =BJ58/BJ59 -> 1 | BN60: =BN58/BN59 -> 1 | BR60: =BR58/BR59 -> 1 | BS60: =BS58/BS59 -> 1 | BT60: =BT58/BT59 -> 1 | BU60: 1 | BV60: =IF(BV59=0,"",BV58/BV59) -> 1 | BW60: 1 | BX60: 1 | BY60: =IF(BY59=0,"",BY58/BY59) -> 1 | BZ60: 1 | CA60: 1 | CB60: =IF(CB59=0,"",CB58/CB59) -> 1
AG61: =IF(S28<>"",S30-S31,"") -> 0 | AI61: =IF(U28<>"",U30-U31,"") -> 0 | AO61: =IF(W28<>"",W30-W31,"") -> 0 | BJ61: =COUNTIF($C$8:$E$57,0) -> 9 | BN61: =COUNTIF($F$8:$H$57,0) -> 9 | BR61: =COUNTIF($I$8:$K$57,0) -> 9 | BS61: =COUNTIF($C$8:$K$57,0) -> 27 | BT61: =COUNTIF(C$8:C$57,0)+COUNTIF($L$8:$L$57,0) -> 6 | BU61: 6 | BV61: 6 | BW61: 6 | BX61: 6 | BY61: 6 | BZ61: 6 | CA61: 6 | CB61: 6
AG62: =IF(S28<>"",S31-S32,"") -> 0.5218237501 | AI62: =IF(U28<>"",U31-U32,"") -> 0.5218237501 | AO62: =IF(W28<>"",W31-W32,"") -> 0.5218237501 | BA62: =BA58/$BA$60 -> 0.6 | BB62: =BB58/$BA$60 -> 0.4 | BD62: =BA8+BB8 -> 9 | BJ62: =COUNTIF($C$8:$E$57,1) -> 6 | BN62: =COUNTIF($F$8:$H$57,1) -> 6 | BR62: =COUNTIF($I$8:$K$57,1) -> 6 | BS62: =COUNTIF($C$8:$K$57,1) -> 18 | BT62: =COUNTIF(C$8:C$57,1)+COUNTIF($L$8:$L$57,1) -> 4 | BU62: 4 | BV62: 4 | BW62: 4 | BX62: 4 | BY62: 4 | BZ62: 4 | CA62: 4 | CB62: 4
AG63: =IF(S28<>"",S43-S44,"") -> 0 | AI63: =IF(U28<>"",U43-U44,"") -> 0 | AO63: =IF(W28<>"",W43-W44,"") -> 0
AG64: =IF(S28<>"",S44-S45,"") -> 0.5218237501 | AI64: =IF(U28<>"",U44-U45,"") -> 0.5218237501 | AO64: =IF(W28<>"",W44-W45,"") -> 0.5218237501
BJ65: =BJ62+BJ61 -> 15 | BN65: =BN62+BN61 -> 15 | BR65: =BR62+BR61 -> 15 | BS65: =BS62+BS61 -> 45 | BT65: =BT62+BT61 -> 10 | BU65: =BU62+BU61 -> 10 | BV65: 10 | BW65: 10 | BX65: 10 | BY65: 10 | BZ65: 10 | CA65: 10 | CB65: 10
BA66: =BA62*BA62 -> 0.36 | BB66: =BB62*BB62 -> 0.16 | BD66: =BD62*(BD62-1) -> 72 | BJ66: =BJ61/BJ65 -> 0.6 | BN66: =BN61/BN65 -> 0.6 | BR66: =BR61/BR65 -> 0.6 | BS66: =BS61/BS65 -> 0.6 | BT66: =BT61/BT65 -> 0.6 | BU66: 0.6 | BV66: 0.6 | BW66: 0.6 | BX66: 0.6 | BY66: 0.6 | BZ66: 0.6 | CA66: 0.6 | CB66: 0.6
BJ67: =BJ62/BJ65 -> 0.4 | BN67: =BN62/BN65 -> 0.4 | BR67: =BR62/BR65 -> 0.4 | BS67: =BS62/BS65 -> 0.4 | BT67: =BT62/BT65 -> 0.4 | BU67: 0.4 | BV67: 0.4 | BW67: 0.4 | BX67: 0.4 | BY67: 0.4 | BZ67: 0.4 | CA67: 0.4 | CB67: 0.4
BD68: =BD66*S28 -> 360 | BJ68: =BJ66*BJ66 -> 0.36 | BN68: =BN66*BN66 -> 0.36 | BR68: =BR66*BR66 -> 0.36 | BS68: =BS66*BS66 -> 0.36 | BT68: =BT66*BT66 -> 0.36 | BU68: 0.36 | BV68: 0.36 | BW68: 0.36 | BX68: 0.36 | BY68: 0.36 | BZ68: 0.36 | CA68: 0.36 | CB68: 0.36
BJ69: =BJ67*BJ67 -> 0.16 | BN69: =BN67*BN67 -> 0.16 | BR69: =BR67*BR67 -> 0.16 | BS69: =BS67*BS67 -> 0.16 | BT69: 0.16 | BU69: 0.16 | BV69: 0.16 | BW69: 0.16 | BX69: 0.16 | BY69: 0.16 | BZ69: 0.16 | CA69: 0.16 | CB69: 0.16
BA71: =BA66+BB66 -> 0.52 | BD71: =BD60/BD68 -> 1 | BF71: Pexp | BJ71: =BJ69+BJ68 -> 0.52 | BN71: =BN69+BN68 -> 0.52 | BR71: =BR69+BR68 -> 0.52 | BS71: =BS69+BS68 -> 0.52 | BT71: =BT69+BT68 -> 0.52 | BU71: 0.52 | BV71: 0.52 | BW71: 0.52 | BX71: 0.52 | BY71: 0.52 | BZ71: 0.52 | CA71: 0.52 | CB71: 0.52
BJ72: Within Prüfer
BC73: between | BD73: =(BD71-BA71)/(1-BA71) -> 1 | BJ73: =IF(BJ60=1,1,(BJ60-BJ71)/(1-BJ71)) -> 1 | BN73: =IF(BN60=1,1,(BN60-BN71)/(1-BN71)) -> 1 | BR73: =IF(BR60=1,1,(BR60-BR71)/(1-BR71)) -> 1 | BS73: 1 | BT73: 1 | BU73: 1 | BV73: 1 | BW73: 1 | BX73: 1 | BY73: 1 | BZ73: 1 | CA73: 1 | CB73: 1
BT74: =AVERAGE(BT73:BV73) -> 1 | BW74: =AVERAGE(BW73:BY73) -> 1 | BZ74: =AVERAGE(BZ73:CB73) -> 1
BT75: =AVERAGE(BT73:CB73) -> 1

Sheet example
A1: Info und Kontakt | C1: roland.schnurr@sixsigmablackbelt.de
A2: Homepage: | C2: www.sixsigmablackbelt.de
A4: Werte aus Bosch Heft Nr. 10 | M4: Werte berechnet mit Minitab
A5: A-1 | B5: A-2 | C5: A-3 | D5: B-1 | E5: B-2 | F5: B-3 | G5: C-1 | H5: C-2 | I5: C-3 | J5: Referenz | Z5: A-1 | AA5: A-2 | AB5: A-3 | AC5: B-1 | AD5: B-2 | AE5: B-3 | AF5: C-1 | AG5: C-2 | AH5: C-3 | AI5: Referenz
A6: 1 | B6: 1 | C6: 1 | D6: 1 | E6: 1 | F6: 1 | G6: 1 | H6: 1 | I6: 1 | J6: 1 | Z6: 1 | AA6: 1 | AB6: 1 | AC6: 1 | AD6: 1 | AE6: 1 | AF6: 1 | AG6: 1 | AH6: 1 | AI6: 1
A7: 1 | B7: 1 | C7: 1 | D7: 1 | E7: 1 | F7: 1 | G7: 1 | H7: 1 | I7: 1 | J7: 1 | Z7: 1 | AA7: 1 | AB7: 1 | AC7: 1 | AD7: 1 | AE7: 1 | AF7: 1 | AG7: 1 | AH7: 1 | AI7: 1
A8: 0 | B8: 0 | C8: 0 | D8: 0 | E8: 0 | F8: 0 | G8: 0 | H8: 0 | I8: 0 | J8: 0 | Z8: 0 | AA8: 0 | AB8: 0 | AC8: 0 | AD8: 0 | AE8: 0 | AF8: 0 | AG8: 0 | AH8: 0 | AI8: 0
A9: 0 | B9: 0 | C9: 0 | D9: 0 | E9: 0 | F9: 0 | G9: 0 | H9: 0 | I9: 0 | J9: 0 | Z9: 0 | AA9: 0 | AB9: 0 | AC9: 0 | AD9: 0 | AE9: 0 | AF9: 0 | AG9: 0 | AH9: 0 | AI9: 0
A10: 0 | B10: 0 | C10: 0 | D10: 0 | E10: 0 | F10: 0 | G10: 0 | H10: 0 | I10: 0 | J10: 0 | Z10: 0 | AA10: 0 | AB10: 0 | AC10: 0 | AD10: 0 | AE10: 0 | AF10: 0 | AG10: 0 | AH10: 0 | AI10: 0
A11: 1 | B11: 1 | C11: 0 | D11: 1 | E11: 1 | F11: 0 | G11: 1 | H11: 0 | I11: 0 | J11: 1 | Z11: 1 | AA11: 1 | AB11: 0 | AC11: 1 | AD11: 1 | AE11: 0 | AF11: 1 | AG11: 0 | AH11: 0 | AI11: 1
A12: 1 | B12: 1 | C12: 1 | D12: 1 | E12: 1 | F12: 1 | G12: 1 | H12: 0 | I12: 1 | J12: 1 | Z12: 1 | AA12: 1 | AB12: 1 | AC12: 1 | AD12: 1 | AE12: 1 | AF12: 1 | AG12: 0 | AH12: 1 | AI12: 1
A13: 1 | B13: 1 | C13: 1 | D13: 1 | E13: 1 | F13: 1 | G13: 1 | H13: 1 | I13: 1 | J13: 1 | Z13: 1 | AA13: 1 | AB13: 1 | AC13: 1 | AD13: 1 | AE13: 1 | AF13: 1 | AG13: 1 | AH13: 1 | AI13: 1
A14: 0 | B14: 0 | C14: 0 | D14: 0 | E14: 0 | F14: 0 | G14: 0 | H14: 0 | I14: 0 | J14: 0 | Z14: 0 | AA14: 0 | AB14: 0 | AC14: 0 | AD14: 0 | AE14: 0 | AF14: 0 | AG14: 0 | AH14: 0 | AI14: 0
A15: 1 | B15: 1 | C15: 1 | D15: 1 | E15: 1 | F15: 1 | G15: 1 | H15: 1 | I15: 1 | J15: 1 | Z15: 1 | AA15: 1 | AB15: 1 | AC15: 1 | AD15: 1 | AE15: 1 | AF15: 1 | AG15: 1 | AH15: 1 | AI15: 1
A16: 1 | B16: 1 | C16: 1 | D16: 1 | E16: 1 | F16: 1 | G16: 1 | H16: 1 | I16: 1 | J16: 1 | Z16: 1 | AA16: 1 | AB16: 1 | AC16: 1 | AD16: 1 | AE16: 1 | AF16: 1 | AG16: 1 | AH16: 1 | AI16: 1
A17: 0 | B17: 0 | C17: 0 | D17: 0 | E17: 0 | F17: 0 | G17: 0 | H17: 1 | I17: 0 | J17: 0 | Z17: 0 | AA17: 0 | AB17: 0 | AC17: 0 | AD17: 0 | AE17: 0 | AF17: 0 | AG17: 1 | AH17: 0 | AI17: 0
A18: 1 | B18: 1 | C18: 1 | D18: 1 | E18: 1 | F18: 1 | G18: 1 | H18: 1 | I18: 1 | J18: 1 | Z18: 1 | AA18: 1 | AB18: 1 | AC18: 1 | AD18: 1 | AE18: 1 | AF18: 1 | AG18: 1 | AH18: 1 | AI18: 1
A19: 1 | B19: 1 | C19: 0 | D19: 1 | E19: 1 | F19: 1 | G19: 1 | H19: 0 | I19: 0 | J19: 1 | Z19: 1 | AA19: 1 | AB19: 0 | AC19: 1 | AD19: 1 | AE19: 1 | AF19: 1 | AG19: 0 | AH19: 0 | AI19: 1
A20: 1 | B20: 1 | C20: 1 | D20: 1 | E20: 1 | F20: 1 | G20: 1 | H20: 1 | I20: 1 | J20: 1 | Z20: 1 | AA20: 1 | AB20: 1 | AC20: 1 | AD20: 1 | AE20: 1 | AF20: 1 | AG20: 1 | AH20: 1 | AI20: 1
A21: 1 | B21: 1 | C21: 1 | D21: 1 | E21: 1 | F21: 1 | G21: 1 | H21: 1 | I21: 1 | J21: 1 | Z21: 1 | AA21: 1 | AB21: 1 | AC21: 1 | AD21: 1 | AE21: 1 | AF21: 1 | AG21: 1 | AH21: 1 | AI21: 1
A22: 1 | B22: 1 | C22: 1 | D22: 1 | E22: 1 | F22: 1 | G22: 1 | H22: 1 | I22: 1 | J22: 1 | Z22: 1 | AA22: 1 | AB22: 1 | AC22: 1 | AD22: 1 | AE22: 1 | AF22: 1 | AG22: 1 | AH22: 1 | AI22: 1
A23: 1 | B23: 1 | C23: 1 | D23: 1 | E23: 1 | F23: 1 | G23: 1 | H23: 1 | I23: 1 | J23: 1 | Z23: 1 | AA23: 1 | AB23: 1 | AC23: 1 | AD23: 1 | AE23: 1 | AF23: 1 | AG23: 1 | AH23: 1 | AI23: 1
A24: 1 | B24: 1 | C24: 1 | D24: 1 | E24: 1 | F24: 1 | G24: 1 | H24: 1 | I24: 1 | J24: 1 | Z24: 1 | AA24: 1 | AB24: 1 | AC24: 1 | AD24: 1 | AE24: 1 | AF24: 1 | AG24: 1 | AH24: 1 | AI24: 1
A25: 1 | B25: 1 | C25: 1 | D25: 1 | E25: 1 | F25: 1 | G25: 1 | H25: 1 | I25: 1 | J25: 1 | Z25: 1 | AA25: 1 | AB25: 1 | AC25: 1 | AD25: 1 | AE25: 1 | AF25: 1 | AG25: 1 | AH25: 1 | AI25: 1
A26: 1 | B26: 1 | C26: 0 | D26: 1 | E26: 0 | F26: 1 | G26: 0 | H26: 1 | I26: 0 | J26: 1
A27: 0 | B27: 0 | C27: 1 | D27: 0 | E27: 1 | F27: 0 | G27: 1 | H27: 1 | I27: 0 | J27: 0
A28: 1 | B28: 1 | C28: 1 | D28: 1 | E28: 1 | F28: 1 | G28: 1 | H28: 1 | I28: 1 | J28: 1
A29: 1 | B29: 1 | C29: 1 | D29: 1 | E29: 1 | F29: 1 | G29: 1 | H29: 1 | I29: 1 | J29: 1
A30: 0 | B30: 0 | C30: 0 | D30: 0 | E30: 0 | F30: 0 | G30: 0 | H30: 0 | I30: 0 | J30: 0
A31: 0 | B31: 1 | C31: 0 | D31: 0 | E31: 0 | F31: 0 | G31: 0 | H31: 0 | I31: 1 | J31: 0
A32: 1 | B32: 1 | C32: 1 | D32: 1 | E32: 1 | F32: 1 | G32: 1 | H32: 1 | I32: 1 | J32: 1
A33: 1 | B33: 1 | C33: 1 | D33: 1 | E33: 1 | F33: 1 | G33: 1 | H33: 1 | I33: 1 | J33: 1
A34: 1 | B34: 1 | C34: 1 | D34: 1 | E34: 1 | F34: 1 | G34: 1 | H34: 1 | I34: 1 | J34: 1
A35: 0 | B35: 0 | C35: 0 | D35: 0 | E35: 0 | F35: 1 | G35: 0 | H35: 0 | I35: 0 | J35: 0
A36: 1 | B36: 1 | C36: 1 | D36: 1 | E36: 1 | F36: 1 | G36: 1 | H36: 1 | I36: 1 | J36: 1
A37: 1 | B37: 1 | C37: 1 | D37: 1 | E37: 1 | F37: 1 | G37: 1 | H37: 1 | I37: 1 | J37: 1
A38: 1 | B38: 1 | C38: 1 | D38: 1 | E38: 1 | F38: 1 | G38: 1 | H38: 1 | I38: 1 | J38: 1
A39: 0 | B39: 0 | C39: 1 | D39: 0 | E39: 0 | F39: 1 | G39: 0 | H39: 1 | I39: 1 | J39: 0
A40: 1 | B40: 1 | C40: 1 | D40: 1 | E40: 1 | F40: 1 | G40: 1 | H40: 1 | I40: 1 | J40: 1
A41: 1 | B41: 1 | C41: 0 | D41: 1 | E41: 1 | F41: 1 | G41: 1 | H41: 0 | I41: 1 | J41: 1
A42: 0 | B42: 0 | C42: 0 | D42: 0 | E42: 0 | F42: 0 | G42: 0 | H42: 0 | I42: 0 | J42: 0
A43: 1 | B43: 1 | C43: 1 | D43: 1 | E43: 1 | F43: 1 | G43: 1 | H43: 1 | I43: 1 | J43: 1
A44: 0 | B44: 0 | C44: 0 | D44: 0 | E44: 0 | F44: 0 | G44: 0 | H44: 0 | I44: 0 | J44: 0
A45: 1 | B45: 1 | C45: 1 | D45: 1 | E45: 1 | F45: 1 | G45: 1 | H45: 1 | I45: 1 | J45: 1
A46: 1 | B46: 1 | C46: 1 | D46: 1 | E46: 1 | F46: 1 | G46: 1 | H46: 1 | I46: 1 | J46: 1
A47: 0 | B47: 0 | C47: 0 | D47: 0 | E47: 0 | F47: 0 | G47: 0 | H47: 0 | I47: 0 | J47: 0
A48: 1 | B48: 0 | C48: 1 | D48: 1 | E48: 1 | F48: 1 | G48: 1 | H48: 1 | I48: 0 | J48: 1
A49: 1 | B49: 1 | C49: 1 | D49: 1 | E49: 1 | F49: 1 | G49: 1 | H49: 1 | I49: 1 | J49: 1
A50: 0 | B50: 0 | C50: 0 | D50: 0 | E50: 0 | F50: 0 | G50: 0 | H50: 0 | I50: 0 | J50: 0
A51: 1 | B51: 1 | C51: 1 | D51: 1 | E51: 1 | F51: 1 | G51: 1 | H51: 1 | I51: 1 | J51: 1
A52: 1 | B52: 1 | C52: 1 | D52: 1 | E52: 1 | F52: 1 | G52: 1 | H52: 1 | I52: 1 | J52: 1
A53: 0 | B53: 0 | C53: 0 | D53: 0 | E53: 0 | F53: 0 | G53: 0 | H53: 0 | I53: 0 | J53: 0
A54: 1 | B54: 1 | C54: 1 | D54: 1 | E54: 1 | F54: 1 | G54: 1 | H54: 1 | I54: 1 | J54: 1
A55: 0 | B55: 0 | C55: 0 | D55: 0 | E55: 0 | F55: 0 | G55: 0 | H55: 0 | I55: 0 | J55: 0
